Workbook

Sheet Sala A
B2: Taxa = | C2: 0.065 | F2: n = | G2: =MAX(A7:A106) -> 12 | I2: Valor Presente Líquido
A3: Macros: | B3: Limpa dados (Ctrl-L) | D3: Exemplo (Ctrl-E) | H3: Cálculo para intervalo de taxas (Ctrl-R) | I3: VPL= | J3: =G5-C5 -> 0
B4: Custos | F4: Receitas
C5: =SUM(C7:C106) -> 15357.78247 | D5: =SUM(D7:D106) -> 32698.19694 | G5: =SUM(G7:G106) -> 15357.78247 | H5: =SUM(H7:H106) -> 32698.19694 | I5: Razão Benefício/Custo
A6: Ano | B6: Valor | C6: Ano 0 | D6: Ano n | F6: Valor | G6: Ano 0 | H6: Ano n | I6: B/C= | J6: =IF(A7="",0,IF(C5=0,0,G5/C5)) -> 1
A7: 0 | B7: 8000 | C7: =IF(A7="","",B7/(1+$C$2)^A7) -> 8000 | D7: =IF(A7="","",B7*(1+$C$2)^($G$2-A7)) -> 17032.76993 | G7: =IF(A7="","",F7/(1+$C$2)^A7) -> 0 | H7: =IF(A7="","",F7*(1+$C$2)^($G$2-A7)) -> 0
A8: 1 | B8: 2000 | C8: 1877.934272 | D8: =IF(A8="","",B8*(1+$C$2)^($G$2-A8)) -> 3998.302801 | G8: 0 | H8: =IF(A8="","",F8*(1+$C$2)^($G$2-A8)) -> 0 | I8: IMA corte 1: | J8: 44
A9: 2 | B9: 800 | C9: 705.3274262 | D9: 1501.709972 | G9: 0 | H9: 0 | I9: Preço corte 1: | J9: 51.73804529
A10: 3 | B10: 500 | C10: 413.9245459 | D10: 881.285195 | G10: 0 | H10: 0
A11: 4 | B11: 500 | C11: 388.6615454 | D11: 827.4978356 | G11: 0 | H11: 0 | I11: IMA corte 2: | J11: 38
A12: 5 | B12: 500 | C12: 364.9404183 | D12: 776.9932729 | G12: 0 | H12: 0 | I12: Preço corte 2: | J12: 56
A13: 6 | B13: 1500 | C13: 1028.001178 | D13: 2188.713445 | F13: =A13*J8*J9 -> 13658.84396 | G13: 9360.871786 | H13: 19930.19694
A14: 7 | B14: 1200 | C14: 772.2074578 | D14: 1644.103996 | G14: 0 | H14: 0
A15: 8 | B15: 500 | C15: 302.1155938 | D15: 643.2331753 | G15: 0 | H15: 0
A16: 9 | B16: 500 | C16: 283.6766139 | D16: 603.9748125 | G16: 0 | H16: 0
A17: 10 | B17: 500 | C17: 266.3630178 | D17: 567.1125 | G17: 0 | H17: 0
A18: 11 | B18: 500 | C18: 250.10612 | D18: 532.5 | G18: 0 | H18: 0
A19: 12 | B19: 1500 | C19: 704.5242816 | D19: 1500 | F19: =(A19-A13)*J11*J12 -> 12768 | G19: 5996.910685 | H19: 12768
C71: =IF(A71="","",B71/(1+$C$2)^A71) ->  | G71: =IF(A71="","",F71/(1+$C$2)^A71) -> 
D72: =IF(A72="","",B72*(1+$C$2)^($G$2-A72)) ->  | H72: =IF(A72="","",F72*(1+$C$2)^($G$2-A72)) -> 
D104: =IF(A104="","",B104*(1+$C$2)^($G$2-A104)) ->  | H104: =IF(A104="","",F104*(1+$C$2)^($G$2-A104)) -> 
D105: =IF(A105="","",B105*(1+$C$2)^($G$2-A105)) ->  | H105: =IF(A105="","",F105*(1+$C$2)^($G$2-A105)) -> 
D106: =IF(A106="","",B106*(1+$C$2)^($G$2-A106)) ->  | H106: =IF(A106="","",F106*(1+$C$2)^($G$2-A106)) -> 

Sheet Sala B
B2: Taxa = | C2: 0.065 | F2: n = | G2: =MAX(A7:A106) -> 12 | I2: Valor Presente Líquido
A3: Macros: | B3: Limpa dados (Ctrl-L) | D3: Exemplo (Ctrl-E) | H3: Cálculo para intervalo de taxas (Ctrl-R) | I3: VPL= | J3: =G5-C5 -> 0
B4: Custos | F4: Receitas
C5: =SUM(C7:C106) -> 15357.78247 | D5: =SUM(D7:D106) -> 32698.19694 | G5: =SUM(G7:G106) -> 15357.78247 | H5: =SUM(H7:H106) -> 32698.19694 | I5: Razão Benefício/Custo
A6: Ano | B6: Valor | C6: Ano 0 | D6: Ano n | F6: Valor | G6: Ano 0 | H6: Ano n | I6: B/C= | J6: =IF(A7="",0,IF(C5=0,0,G5/C5)) -> 1
A7: 0 | B7: 8000 | C7: =IF(A7="","",B7/(1+$C$2)^A7) -> 8000 | D7: =IF(A7="","",B7*(1+$C$2)^($G$2-A7)) -> 17032.76993 | G7: =IF(A7="","",F7/(1+$C$2)^A7) -> 0 | H7: =IF(A7="","",F7*(1+$C$2)^($G$2-A7)) -> 0
A8: 1 | B8: 2000 | C8: 1877.934272 | D8: =IF(A8="","",B8*(1+$C$2)^($G$2-A8)) -> 3998.302801 | G8: 0 | H8: =IF(A8="","",F8*(1+$C$2)^($G$2-A8)) -> 0 | I8: IMA corte 1: | J8: 44
A9: 2 | B9: 800 | C9: 705.3274262 | D9: 1501.709972 | G9: 0 | H9: 0 | I9: Preço corte 1: | J9: 56
A10: 3 | B10: 500 | C10: 413.9245459 | D10: 881.285195 | G10: 0 | H10: 0
A11: 4 | B11: 500 | C11: 388.6615454 | D11: 827.4978356 | G11: 0 | H11: 0 | I11: IMA corte 2: | J11: 38
A12: 5 | B12: 500 | C12: 364.9404183 | D12: 776.9932729 | G12: 0 | H12: 0 | I12: Preço corte 2: | J12: 48.79928608
A13: 6 | B13: 1500 | C13: 1028.001178 | D13: 2188.713445 | F13: =A13*J8*J9 -> 14784 | G13: 10131.97961 | H13: 21571.95971
A14: 7 | B14: 1200 | C14: 772.2074578 | D14: 1644.103996 | G14: 0 | H14: 0
A15: 8 | B15: 500 | C15: 302.1155938 | D15: 643.2331753 | G15: 0 | H15: 0
A16: 9 | B16: 500 | C16: 283.6766139 | D16: 603.9748125 | G16: 0 | H16: 0
A17: 10 | B17: 500 | C17: 266.3630178 | D17: 567.1125 | G17: 0 | H17: 0
A18: 11 | B18: 500 | C18: 250.10612 | D18: 532.5 | G18: 0 | H18: 0
A19: 12 | B19: 1500 | C19: 704.5242816 | D19: 1500 | F19: =(A19-A13)*J11*J12 -> 11126.23723 | G19: 5225.802859 | H19: 11126.23723
C71: =IF(A71="","",B71/(1+$C$2)^A71) ->  | G71: =IF(A71="","",F71/(1+$C$2)^A71) -> 
D72: =IF(A72="","",B72*(1+$C$2)^($G$2-A72)) ->  | H72: =IF(A72="","",F72*(1+$C$2)^($G$2-A72)) -> 
D104: =IF(A104="","",B104*(1+$C$2)^($G$2-A104)) ->  | H104: =IF(A104="","",F104*(1+$C$2)^($G$2-A104)) -> 
D105: =IF(A105="","",B105*(1+$C$2)^($G$2-A105)) ->  | H105: =IF(A105="","",F105*(1+$C$2)^($G$2-A105)) -> 
D106: =IF(A106="","",B106*(1+$C$2)^($G$2-A106)) ->  | H106: =IF(A106="","",F106*(1+$C$2)^($G$2-A106)) -> 

Sheet Sala C
B2: Taxa = | C2: 0.09 | F2: n = | G2: =MAX(A7:A106) -> 12 | I2: Valor Presente Líquido
A3: Macros: | B3: Limpa dados (Ctrl-L) | D3: Exemplo (Ctrl-E) | H3: Cálculo para intervalo de taxas (Ctrl-R) | I3: VPL= | J3: =G5-C5 -> 0
B4: Custos | F4: Receitas
C5: =SUM(C7:C106) -> 13517.04535 | D5: =SUM(D7:D106) -> 38018.91741 | G5: =SUM(G7:G106) -> 13517.04535 | H5: =SUM(H7:H106) -> 38018.91741 | I5: Razão Benefício/Custo
A6: Ano | B6: Valor | C6: Ano 0 | D6: Ano n | F6: Valor | G6: Ano 0 | H6: Ano n | I6: B/C= | J6: =IF(A7="",0,IF(C5=0,0,G5/C5)) -> 1
A7: 0 | B7: 7000 | C7: =IF(A7="","",B7/(1+$C$2)^A7) -> 7000 | D7: =IF(A7="","",B7*(1+$C$2)^($G$2-A7)) -> 19688.65347 | G7: =IF(A7="","",F7/(1+$C$2)^A7) -> 0 | H7: =IF(A7="","",F7*(1+$C$2)^($G$2-A7)) -> 0
A8: 1 | B8: 2000 | C8: 1834.862385 | D8: =IF(A8="","",B8*(1+$C$2)^($G$2-A8)) -> 5160.852811 | G8: 0 | H8: =IF(A8="","",F8*(1+$C$2)^($G$2-A8)) -> 0 | I8: IMA corte 1: | J8: 42
A9: 2 | B9: 1000 | C9: 841.6799933 | D9: 2367.363675 | G9: 0 | H9: 0 | I9: Preço corte 1: | J9: 60.28669039
A10: 3 | B10: 600 | C10: 463.310088 | D10: 1303.135968 | G10: 0 | H10: 0
A11: 4 | B11: 600 | C11: 425.0551266 | D11: 1195.537585 | G11: 0 | H11: 0 | I11: IMA corte 2: | J11: 38
A12: 5 | B12: 600 | C12: 389.9588318 | D12: 1096.823472 | G12: 0 | H12: 0 | I12: Preço corte 2: | J12: 55
A13: 6 | B13: 1000 | C13: 596.2673269 | D13: 1677.100111 | F13: =A13*J8*J9 -> 15192.24598 | G13: 9058.639899 | H13: 25478.91741
A14: 7 | B14: 1000 | C14: 547.0342448 | D14: 1538.623955 | G14: 0 | H14: 0
A15: 8 | B15: 600 | C15: 301.1197678 | D15: 846.948966 | G15: 0 | H15: 0
A16: 9 | B16: 600 | C16: 276.2566677 | D16: 777.0174 | G16: 0 | H16: 0
A17: 10 | B17: 600 | C17: 253.4464841 | D17: 712.86 | G17: 0 | H17: 0
A18: 11 | B18: 600 | C18: 232.5197102 | D18: 654 | G18: 0 | H18: 0
A19: 12 | B19: 1000 | C19: 355.5347251 | D19: 1000 | F19: =(A19-A13)*J11*J12 -> 12540 | G19: 4458.405453 | H19: 12540
C71: =IF(A71="","",B71/(1+$C$2)^A71) ->  | G71: =IF(A71="","",F71/(1+$C$2)^A71) -> 
D72: =IF(A72="","",B72*(1+$C$2)^($G$2-A72)) ->  | H72: =IF(A72="","",F72*(1+$C$2)^($G$2-A72)) -> 
D104: =IF(A104="","",B104*(1+$C$2)^($G$2-A104)) ->  | H104: =IF(A104="","",F104*(1+$C$2)^($G$2-A104)) -> 
D105: =IF(A105="","",B105*(1+$C$2)^($G$2-A105)) ->  | H105: =IF(A105="","",F105*(1+$C$2)^($G$2-A105)) -> 
D106: =IF(A106="","",B106*(1+$C$2)^($G$2-A106)) ->  | H106: =IF(A106="","",F106*(1+$C$2)^($G$2-A106)) -> 

Sheet Sala D
B2: Taxa = | C2: 0.09 | F2: n = | G2: =MAX(A7:A106) -> 12 | I2: Valor Presente Líquido
A3: Macros: | B3: Limpa dados (Ctrl-L) | D3: Exemplo (Ctrl-E) | H3: Cálculo para intervalo de taxas (Ctrl-R) | I3: VPL= | J3: =G5-C5 -> 0
B4: Custos | F4: Receitas
C5: =SUM(C7:C106) -> 13517.04535 | D5: =SUM(D7:D106) -> 38018.91741 | G5: =SUM(G7:G106) -> 13517.04535 | H5: =SUM(H7:H106) -> 38018.91741 | I5: Razão Benefício/Custo
A6: Ano | B6: Valor | C6: Ano 0 | D6: Ano n | F6: Valor | G6: Ano 0 | H6: Ano n | I6: B/C= | J6: =IF(A7="",0,IF(C5=0,0,G5/C5)) -> 1
A7: 0 | B7: 7000 | C7: =IF(A7="","",B7/(1+$C$2)^A7) -> 7000 | D7: =IF(A7="","",B7*(1+$C$2)^($G$2-A7)) -> 19688.65347 | G7: =IF(A7="","",F7/(1+$C$2)^A7) -> 0 | H7: =IF(A7="","",F7*(1+$C$2)^($G$2-A7)) -> 0
A8: 1 | B8: 2000 | C8: 1834.862385 | D8: =IF(A8="","",B8*(1+$C$2)^($G$2-A8)) -> 5160.852811 | G8: 0 | H8: =IF(A8="","",F8*(1+$C$2)^($G$2-A8)) -> 0 | I8: IMA corte 1: | J8: 42
A9: 2 | B9: 1000 | C9: 841.6799933 | D9: 2367.363675 | G9: 0 | H9: 0 | I9: Preço corte 1: | J9: 53
A10: 3 | B10: 600 | C10: 463.310088 | D10: 1303.135968 | G10: 0 | H10: 0
A11: 4 | B11: 600 | C11: 425.0551266 | D11: 1195.537585 | G11: 0 | H11: 0 | I11: IMA corte 2: | J11: 38
A12: 5 | B12: 600 | C12: 389.9588318 | D12: 1096.823472 | G12: 0 | H12: 0 | I12: Preço corte 2: | J12: 68.50687866
A13: 6 | B13: 1000 | C13: 596.2673269 | D13: 1677.100111 | F13: =A13*J8*J9 -> 13356 | G13: 7963.746418 | H13: 22399.34908
A14: 7 | B14: 1000 | C14: 547.0342448 | D14: 1538.623955 | G14: 0 | H14: 0
A15: 8 | B15: 600 | C15: 301.1197678 | D15: 846.948966 | G15: 0 | H15: 0
A16: 9 | B16: 600 | C16: 276.2566677 | D16: 777.0174 | G16: 0 | H16: 0
A17: 10 | B17: 600 | C17: 253.4464841 | D17: 712.86 | G17: 0 | H17: 0
A18: 11 | B18: 600 | C18: 232.5197102 | D18: 654 | G18: 0 | H18: 0
A19: 12 | B19: 1000 | C19: 355.5347251 | D19: 1000 | F19: =(A19-A13)*J11*J12 -> 15619.56833 | G19: 5553.298934 | H19: 15619.56833
C71: =IF(A71="","",B71/(1+$C$2)^A71) ->  | G71: =IF(A71="","",F71/(1+$C$2)^A71) -> 
D72: =IF(A72="","",B72*(1+$C$2)^($G$2-A72)) ->  | H72: =IF(A72="","",F72*(1+$C$2)^($G$2-A72)) -> 
D104: =IF(A104="","",B104*(1+$C$2)^($G$2-A104)) ->  | H104: =IF(A104="","",F104*(1+$C$2)^($G$2-A104)) -> 
D105: =IF(A105="","",B105*(1+$C$2)^($G$2-A105)) ->  | H105: =IF(A105="","",F105*(1+$C$2)^($G$2-A105)) -> 
D106: =IF(A106="","",B106*(1+$C$2)^($G$2-A106)) ->  | H106: =IF(A106="","",F106*(1+$C$2)^($G$2-A106)) -> 

Sheet Sala E
B2: Taxa = | C2: 0.065 | F2: n = | G2: =MAX(A7:A106) -> 12 | I2: Valor Presente Líquido
A3: Macros: | B3: Limpa dados (Ctrl-L) | D3: Exemplo (Ctrl-E) | H3: Cálculo para intervalo de taxas (Ctrl-R) | I3: VPL= | J3: =G5-C5 -> 0
B4: Custos | F4: Receitas
C5: =SUM(C7:C106) -> 14888.20486 | D5: =SUM(D7:D106) -> 31698.421 | G5: =SUM(G7:G106) -> 14888.20486 | H5: =SUM(H7:H106) -> 31698.421 | I5: Razão Benefício/Custo
A6: Ano | B6: Valor | C6: Ano 0 | D6: Ano n | F6: Valor | G6: Ano 0 | H6: Ano n | I6: B/C= | J6: =IF(A7="",0,IF(C5=0,0,G5/C5)) -> 1
A7: 0 | B7: 7530.422385 | C7: =IF(A7="","",B7/(1+$C$2)^A7) -> 7530.422385 | D7: =IF(A7="","",B7*(1+$C$2)^($G$2-A7)) -> 16032.994 | G7: =IF(A7="","",F7/(1+$C$2)^A7) -> 0 | H7: =IF(A7="","",F7*(1+$C$2)^($G$2-A7)) -> 0
A8: 1 | B8: 2000 | C8: 1877.934272 | D8: =IF(A8="","",B8*(1+$C$2)^($G$2-A8)) -> 3998.302801 | G8: 0 | H8: =IF(A8="","",F8*(1+$C$2)^($G$2-A8)) -> 0 | I8: IMA corte 1: | J8: 45
A9: 2 | B9: 800 | C9: 705.3274262 | D9: 1501.709972 | G9: 0 | H9: 0 | I9: Preço corte 1: | J9: 50
A10: 3 | B10: 500 | C10: 413.9245459 | D10: 881.285195 | G10: 0 | H10: 0
A11: 4 | B11: 500 | C11: 388.6615454 | D11: 827.4978356 | G11: 0 | H11: 0 | I11: IMA corte 2: | J11: 40
A12: 5 | B12: 500 | C12: 364.9404183 | D12: 776.9932729 | G12: 0 | H12: 0 | I12: Preço corte 2: | J12: 50
A13: 6 | B13: 1500 | C13: 1028.001178 | D13: 2188.713445 | F13: =A13*J8*J9 -> 13500 | G13: 9252.010604 | H13: 19698.421
A14: 7 | B14: 1200 | C14: 772.2074578 | D14: 1644.103996 | G14: 0 | H14: 0
A15: 8 | B15: 500 | C15: 302.1155938 | D15: 643.2331753 | G15: 0 | H15: 0
A16: 9 | B16: 500 | C16: 283.6766139 | D16: 603.9748125 | G16: 0 | H16: 0
A17: 10 | B17: 500 | C17: 266.3630178 | D17: 567.1125 | G17: 0 | H17: 0
A18: 11 | B18: 500 | C18: 250.10612 | D18: 532.5 | G18: 0 | H18: 0
A19: 12 | B19: 1500 | C19: 704.5242816 | D19: 1500 | F19: =(A19-A13)*J11*J12 -> 12000 | G19: 5636.194253 | H19: 12000
C71: =IF(A71="","",B71/(1+$C$2)^A71) ->  | G71: =IF(A71="","",F71/(1+$C$2)^A71) -> 
D72: =IF(A72="","",B72*(1+$C$2)^($G$2-A72)) ->  | H72: =IF(A72="","",F72*(1+$C$2)^($G$2-A72)) -> 
D104: =IF(A104="","",B104*(1+$C$2)^($G$2-A104)) ->  | H104: =IF(A104="","",F104*(1+$C$2)^($G$2-A104)) -> 
D105: =IF(A105="","",B105*(1+$C$2)^($G$2-A105)) ->  | H105: =IF(A105="","",F105*(1+$C$2)^($G$2-A105)) -> 
D106: =IF(A106="","",B106*(1+$C$2)^($G$2-A106)) ->  | H106: =IF(A106="","",F106*(1+$C$2)^($G$2-A106)) -> 

Sheet Sala F
B2: Taxa = | C2: 0.065 | F2: n = | G2: =MAX(A7:A106) -> 12 | I2: Valor Presente Líquido
A3: Macros: | B3: Limpa dados (Ctrl-L) | D3: Exemplo (Ctrl-E) | H3: Cálculo para intervalo de taxas (Ctrl-R) | I3: VPL= | J3: =G5-C5 -> 0
B4: Custos | F4: Receitas
C5: =SUM(C7:C106) -> 17357.78247 | D5: =SUM(D7:D106) -> 36956.38942 | G5: =SUM(G7:G106) -> 17357.78247 | H5: =SUM(H7:H106) -> 36956.38942 | I5: Razão Benefício/Custo
A6: Ano | B6: Valor | C6: Ano 0 | D6: Ano n | F6: Valor | G6: Ano 0 | H6: Ano n | I6: B/C= | J6: =IF(A7="",0,IF(C5=0,0,G5/C5)) -> 1
A7: 0 | B7: 10000 | C7: =IF(A7="","",B7/(1+$C$2)^A7) -> 10000 | D7: =IF(A7="","",B7*(1+$C$2)^($G$2-A7)) -> 21290.96242 | G7: =IF(A7="","",F7/(1+$C$2)^A7) -> 0 | H7: =IF(A7="","",F7*(1+$C$2)^($G$2-A7)) -> 0
A8: 1 | B8: 2000 | C8: 1877.934272 | D8: =IF(A8="","",B8*(1+$C$2)^($G$2-A8)) -> 3998.302801 | G8: 0 | H8: =IF(A8="","",F8*(1+$C$2)^($G$2-A8)) -> 0 | I8: IMA corte 1: | J8: 57.01155051
A9: 2 | B9: 800 | C9: 705.3274262 | D9: 1501.709972 | G9: 0 | H9: 0 | I9: Preço corte 1: | J9: 50
A10: 3 | B10: 500 | C10: 413.9245459 | D10: 881.285195 | G10: 0 | H10: 0
A11: 4 | B11: 500 | C11: 388.6615454 | D11: 827.4978356 | G11: 0 | H11: 0 | I11: IMA corte 2: | J11: 40
A12: 5 | B12: 500 | C12: 364.9404183 | D12: 776.9932729 | G12: 0 | H12: 0 | I12: Preço corte 2: | J12: 50
A13: 6 | B13: 1500 | C13: 1028.001178 | D13: 2188.713445 | F13: =A13*J8*J9 -> 17103.46515 | G13: 11721.58822 | H13: 24956.38942
A14: 7 | B14: 1200 | C14: 772.2074578 | D14: 1644.103996 | G14: 0 | H14: 0
A15: 8 | B15: 500 | C15: 302.1155938 | D15: 643.2331753 | G15: 0 | H15: 0
A16: 9 | B16: 500 | C16: 283.6766139 | D16: 603.9748125 | G16: 0 | H16: 0
A17: 10 | B17: 500 | C17: 266.3630178 | D17: 567.1125 | G17: 0 | H17: 0
A18: 11 | B18: 500 | C18: 250.10612 | D18: 532.5 | G18: 0 | H18: 0
A19: 12 | B19: 1500 | C19: 704.5242816 | D19: 1500 | F19: =(A19-A13)*J11*J12 -> 12000 | G19: 5636.194253 | H19: 12000
C71: =IF(A71="","",B71/(1+$C$2)^A71) ->  | G71: =IF(A71="","",F71/(1+$C$2)^A71) -> 
D72: =IF(A72="","",B72*(1+$C$2)^($G$2-A72)) ->  | H72: =IF(A72="","",F72*(1+$C$2)^($G$2-A72)) -> 
D104: =IF(A104="","",B104*(1+$C$2)^($G$2-A104)) ->  | H104: =IF(A104="","",F104*(1+$C$2)^($G$2-A104)) -> 
D105: =IF(A105="","",B105*(1+$C$2)^($G$2-A105)) ->  | H105: =IF(A105="","",F105*(1+$C$2)^($G$2-A105)) -> 
D106: =IF(A106="","",B106*(1+$C$2)^($G$2-A106)) ->  | H106: =IF(A106="","",F106*(1+$C$2)^($G$2-A106)) -> 
